bitfinex-derivatives/quotes_BTCF0:USTF0_20250810
["timestamp","ask_amount","ask_price","bid_price","bid_amount"]
[1754848029188,0.230651,118680.0,118670.0,1.8545881]
[1754848029892,0.0465946,118680.0,118670.0,1.8545881]
[1754848030987,0.0240046,118680.0,118670.0,1.8545881]
[1754848031187,0.0489546,118680.0,118670.0,1.8545881]
[1754848032892,0.0489546,118680.0,118670.0,1.8465881]
[1754848039092,0.0489546,118680.0,118670.0,1.20179348]
[1754848039292,0.0656646,118680.0,118670.0,1.8465881]
[1754848039997,0.0656646,118680.0,118670.0,1.8385881]
[1754848047100,0.0656646,118680.0,118670.0,1.8305881]
[1754848047300,0.0489546,118680.0,118670.0,1.8305881]
[1754848054223,0.0489546,118680.0,118670.0,1.7943246]
[1754848054508,0.0489546,118680.0,118670.0,1.8785881]
[1754848055011,0.0489546,118680.0,118670.0,1.5177881]
[1754848055309,0.0489546,118680.0,118670.0,1.8785881]
[1754848061308,0.0489546,118680.0,118670.0,1.8705881]
[1754848068421,0.0489546,118680.0,118670.0,1.8625881]
[1754848075421,0.0489546,118680.0,118670.0,1.8545881]
[1754848076918,0.0489546,118680.0,118670.0,2.2153881]
[1754848079918,0.0240046,118680.0,118670.0,2.2153881]
[1754848080435,0.0484546,118680.0,118670.0,2.4781881]
[1754848082629,0.0484546,118680.0,118670.0,2.4701881]
[1754848091436,0.0484546,118680.0,118670.0,2.4621881]
[1754848093139,0.04830548,118680.0,118670.0,2.4621881]
[1754848098145,0.09242548,118680.0,118670.0,2.4621881]
[1754848098355,0.12582548,118680.0,118670.0,2.4621881]
[1754848098554,0.14776548,118680.0,118670.0,2.4937081]
[1754848105458,0.23201768,118680.0,118670.0,2.4937081]
[1754848105652,0.23201768,118680.0,118670.0,2.4857081]
[1754848107555,0.2318862,118680.0,118670.0,2.4857081]
[1754848110055,0.1324262,118680.0,118670.0,2.4857081]
[1754848110257,0.2318862,118680.0,118670.0,2.4857081]
[1754848111262,0.147634,118680.0,118670.0,2.4857081]
[1754848112659,0.2317858,118680.0,118670.0,2.4777081]
[1754848112859,0.147534,118680.0,118670.0,2.4777081]
[1754848113767,0.114134,118680.0,118670.0,2.4777081]
[1754848114066,0.114234,118680.0,118670.0,2.49632428]
[1754848118068,0.114234,118680.0,118670.0,1.77472428]
[1754848118368,0.1984861,118680.0,118670.0,2.49632428]
[1754848119069,0.2313361,118680.0,118670.0,2.49632428]
[1754848119772,0.2313361,118680.0,118670.0,2.17667699]
[1754848120070,0.2313361,118680.0,118670.0,2.4990743]
[1754848121865,0.075654,118680.0,118670.0,2.4990743]
[1754848122066,0.059234,118680.0,118670.0,2.4990743]
[1754848122675,0.048174,118680.0,118670.0,2.4990743]
[1754848127014,0.048174,118680.0,118670.0,2.4910743]
[1754848132577,0.108934,118680.0,118670.0,2.4910743]
[1754848132885,0.146434,118680.0,118670.0,2.4910743]
[1754848133878,0.146434,118680.0,118670.0,2.4830743]
[1754848135590,0.2306855,118680.0,118670.0,2.4830743]
[1754848136581,0.2100615,118680.0,118670.0,2.4830743]
[1754848136888,0.23062023,118680.0,118670.0,2.4830743]
[1754848137391,0.14636873,118680.0,118670.0,2.4830743]
[1754848138489,0.23062023,118680.0,118670.0,2.4830743]
[1754848138685,0.23062023,118680.0,118670.0,1.7614743]
[1754848138987,0.23062023,118680.0,118670.0,2.4830743]
[1754848140797,0.19777023,118680.0,118670.0,1.40967699]
[1754848140993,0.23062023,118680.0,118670.0,2.16847699]
[1754848141399,0.23062023,118680.0,118670.0,2.4908743]
[1754848141698,0.23062023,118680.0,118670.0,2.16847699]
[1754848145600,0.23062023,118680.0,118670.0,1.90567699]
[1754848149205,0.23062023,118680.0,118670.0,1.89767699]
[1754848150402,0.24901099,118680.0,118670.0,1.89767699]
[1754848151496,0.24901099,118680.0,118670.0,1.82941349]
[1754848151704,0.24901099,118680.0,118670.0,1.91366969]
[1754848152098,0.24901099,118680.0,118670.0,1.59127238]
[1754848152295,0.24901099,118680.0,118670.0,1.91366969]
[1754848155308,0.24901099,118680.0,118670.0,1.59127238]
[1754848155608,0.23190023,118680.0,118670.0,1.91366969]
[1754848156005,0.23188896,118680.0,118670.0,1.91366969]
[1754848156203,0.23178896,118680.0,118670.0,1.90566969]
[1754848160514,0.23178896,118680.0,118670.0,1.54486969]
[1754848160715,0.23188896,118680.0,118670.0,1.54496969]
[1754848163416,0.23188896,118680.0,118670.0,1.53696969]
[1754848168016,0.23188896,118680.0,118670.0,1.17616969]
[1754848168219,0.23188896,118680.0,118670.0,1.53696969]
[1754848170420,0.23188896,118680.0,118670.0,1.52896969]
[1754848170635,0.23188896,118680.0,118670.0,1.54789292]
[1754848179523,0.23188896,118680.0,118670.0,1.53989292]
[1754848182151,0.13234896,118680.0,118670.0,1.53989292]
[1754848184728,0.13234896,118680.0,118670.0,1.21749561]
[1754848185133,0.13234896,118680.0,118670.0,1.53989292]
[1754848185632,0.13234896,118680.0,118670.0,1.21749561]
[1754848185832,0.23108896,118680.0,118670.0,1.53989292]
[1754848186621,0.23108896,118680.0,118670.0,1.53189292]
[1754848193646,0.23108896,118680.0,118670.0,1.20149561]
[1754848193854,0.30015518,118680.0,118670.0,1.52389292]
[1754848197751,0.26634518,118680.0,118670.0,1.52389292]
[1754848200847,0.26634518,118680.0,118670.0,1.51589292]
[1754848201353,0.26634518,118680.0,118670.0,1.19349561]
[1754848201555,0.26634518,118680.0,118670.0,1.51589292]
[1754848202654,0.30015518,118680.0,118670.0,1.51589292]
[1754848208561,0.30015518,118680.0,118670.0,1.50789292]
[1754848214359,0.30015518,118680.0,118670.0,1.14709292]
[1754848214559,0.30015518,118680.0,118670.0,1.50789292]
[1754848215655,0.30015518,118680.0,118670.0,1.49989292]
[1754848216556,0.30015518,118680.0,118670.0,1.17749561]
[1754848216752,0.30015518,118680.0,118670.0,1.49989292]
[1754848219258,0.25174518,118680.0,118670.0,0.78647754]
[1754848219464,0.62437249,118680.0,118670.0,1.46870054]
[1754848219660,0.68495019,118680.0,118670.0,1.46870054]
[1754848220157,0.68495019,118680.0,118670.0,1.14630323]
[1754848220463,0.68495019,118680.0,118670.0,0.70222054]
[1754848220856,0.68495019,118680.0,118670.0,0.78647754]
[1754848221560,0.68495019,118680.0,118670.0,0.70222054]
[1754848221760,0.36255288,118680.0,118670.0,0.70222054]
[1754848222566,0.68495019,118680.0,118670.0,0.34142054]
[1754848222765,0.68485019,118680.0,118670.0,0.33342054]
[1754848222960,0.68485019,118680.0,118670.0,0.01102323]
[1754848223165,1.45133019,118680.0,118670.0,0.01102323]
[1754848223668,1.45133019,118680.0,118670.0,0.33342054]
[1754848223868,1.45143019,118680.0,118670.0,0.33352054]
[1754848224170,1.39085249,118680.0,118670.0,0.33352054]
[1754848225168,1.06845518,118680.0,118670.0,0.33352054]
[1754848225368,1.39085249,118680.0,118670.0,0.33352054]
[1754848226663,1.39093142,118680.0,118670.0,0.33352054]
[1754848228374,1.06853411,118680.0,118670.0,0.33352054]
[1754848228574,1.39093142,118680.0,118670.0,0.01112323]
[1754848228771,1.39093142,118680.0,118670.0,0.33352054]
[1754848229777,1.39093142,118680.0,118670.0,0.32552054]
[1754848233980,1.37030503,118680.0,118670.0,0.32552054]
[1754848234176,1.39092424,118680.0,118670.0,0.32552054]
[1754848236275,1.39092424,118680.0,118670.0,0.00312323]
[1754848236475,1.39092424,118680.0,118670.0,0.32552054]
[1754848236873,1.39082424,118680.0,118670.0,0.31752054]
[1754848242679,1.39082424,118680.0,118670.0,0.40177754]
[1754848242890,1.06852693,118680.0,118670.0,0.40187754]
[1754848243885,1.06852693,118680.0,118670.0,0.39387754]
[1754848246686,1.06852693,118680.0,118670.0,0.084357]
[1754848246887,1.39092424,118680.0,118670.0,0.40675431]
[1754848247591,1.39093852,118680.0,118670.0,0.40675431]
[1754848250190,1.06854121,118680.0,118670.0,0.40675431]
[1754848251087,1.06854121,118680.0,118670.0,0.39875431]
[1754848253207,1.39093852,118680.0,118670.0,0.32249731]
[1754848253602,1.39093852,118680.0,118670.0,0.40675431]
[1754848254601,1.39093852,118680.0,118670.0,0.32249731]
[1754848255306,1.45158827,118680.0,118670.0,0.32249731]
[1754848255605,1.39093852,118680.0,118670.0,0.32249731]
[1754848257109,1.39093852,118680.0,118670.0,0.40675431]
[1754848257309,1.4515887,118680.0,118670.0,0.40675431]
[1754848258208,1.45148868,118680.0,118670.0,0.75955431]
[1754848262913,1.12909137,118680.0,118670.0,0.75955431]
[1754848263114,1.45158868,118680.0,118670.0,0.75965431]
[1754848263415,1.12919137,118680.0,118670.0,0.75965431]
[1754848263815,0.36271137,118680.0,118670.0,0.75965431]
[1754848264002,0.17789987,118680.0,118670.0,1.08205162]
[1754848264315,0.21249961,118680.0,118670.0,1.08205162]
[1754848264517,0.24512961,118680.0,118670.0,1.08205162]
[1754848264717,0.21526971,118680.0,118670.0,1.08205162]
[1754848265213,0.29951961,118680.0,118670.0,0.76755431]
[1754848265420,0.29951961,118680.0,118670.0,1.08995162]
[1754848266412,0.21526971,118680.0,118670.0,1.08995162]
[1754848267516,0.29951961,118680.0,118670.0,1.08995162]
[1754848270412,0.29951961,118680.0,118670.0,0.445157]
[1754848270721,0.29951961,118680.0,118670.0,1.08995162]
[1754848271422,0.09279971,118680.0,118670.0,1.08995162]
[1754848273017,0.02373349,118680.0,118670.0,1.08195162]
[1754848273217,0.02373349,118680.0,118670.0,1.25047961]
[1754848273415,0.02373349,118680.0,118670.0,1.25936959]
[1754848273621,0.02373349,118680.0,118670.0,1.0908416]
[1754848274022,0.02373349,118680.0,118670.0,1.25936959]
[1754848274619,0.02373349,118680.0,118670.0,1.0908416]
[1754848275619,0.0031,118680.0,118670.0,1.0908416]
[1754848277646,0.02764,118680.0,118670.0,1.08195162]
[1754848278732,0.02764,118680.0,118670.0,1.34475162]
[1754848279829,0.02764,118680.0,118670.0,0.699957]
[1754848280127,0.02764,118680.0,118670.0,1.33675162]
[1754848285540,0.07609,118680.0,118670.0,1.33675162]
[1754848285739,0.12359,118680.0,118670.0,1.33675162]
[1754848286534,0.2078398,118680.0,118670.0,1.78051431]
[1754848286741,0.22840677,118680.0,118670.0,1.78051431]
[1754848287237,0.22840677,118680.0,118670.0,1.77251431]
[1754848289639,0.29703488,118680.0,118670.0,1.77251431]
[1754848290546,0.29703488,118680.0,118670.0,1.50971431]
[1754848292244,0.29703488,118680.0,118670.0,1.87051431]
[1754848293151,0.21278508,118680.0,118670.0,1.87051431]
[1754848294351,0.29703488,118680.0,118670.0,1.86251431]
[1754848295046,0.21278508,118680.0,118670.0,1.86251431]
[1754848297146,0.21278508,118680.0,118670.0,1.86351431]
[1754848297341,0.21278508,118680.0,118670.0,2.18591162]
[1754848299650,0.29703488,118680.0,118670.0,2.18591162]
[1754848301046,0.29503488,118680.0,118670.0,1.86351431]
[1754848301245,0.29603488,118680.0,118670.0,1.86451431]
[1754848301447,0.29603488,118680.0,118670.0,1.85651431]
[1754848302146,0.21178508,118680.0,118670.0,1.85651431]
[1754848303050,0.09129508,118680.0,118670.0,2.17891162]
[1754848303275,0.11420508,118680.0,118670.0,2.17891162]
[1754848303646,0.11420508,118680.0,118670.0,1.45731162]
[1754848303853,0.14011508,118680.0,118670.0,2.17891162]
[1754848305048,0.11420508,118680.0,118670.0,2.17891162]
[1754848306053,0.02266697,118680.0,118670.0,2.17891162]
[1754848306654,0.04557697,118680.0,118670.0,2.17891162]
[1754848308157,0.04557697,118680.0,118670.0,2.44171162]
[1754848308459,0.04557697,118680.0,118670.0,2.43371162]
[1754848309548,0.02266697,118680.0,118670.0,2.43371162]
[1754848309749,0.04557697,118680.0,118670.0,2.43371162]
[1754848311150,0.02266697,118680.0,118670.0,2.43371162]
[1754848311656,0.04557697,118680.0,118670.0,2.43371162]
[1754848313663,0.04557697,118680.0,118670.0,1.71211162]
[1754848313856,0.04557697,118680.0,118670.0,2.43371162]
[1754848315560,0.04557697,118680.0,118670.0,2.39745462]
[1754848315959,0.04557697,118680.0,118670.0,2.48171162]
[1754848322665,0.04547697,118680.0,118670.0,2.47371162]
[1754848323767,0.04547697,118680.0,118670.0,1.828917]
[1754848323958,0.04557697,118680.0,118670.0,2.47381162]
[1754848325166,0.07148697,118680.0,118670.0,2.47381162]
[1754848328771,0.12089697,118680.0,118670.0,2.47381162]
[1754848328967,0.14342697,118680.0,118670.0,2.47381162]
[1754848330770,0.10906697,118680.0,118670.0,2.46581162]
[1754848333272,0.05621697,118680.0,118670.0,2.46581162]
[1754848336175,0.04557697,118680.0,118670.0,2.46581162]
[1754848337670,0.04557697,118680.0,118670.0,2.45781162]
[1754848344881,0.04557697,118680.0,118670.0,2.44981162]
[1754848345374,0.11962697,118680.0,118670.0,2.44981162]
[1754848345572,0.14215697,118680.0,118670.0,2.44981162]
[1754848346376,0.14215697,118680.0,118670.0,1.71555162]
[1754848346582,0.14215697,118680.0,118670.0,2.15911431]
[1754848351786,0.14215697,118680.0,118670.0,2.15111431]
[1754848353092,0.14215697,118680.0,118670.0,2.47351162]
[1754848354787,0.22640677,118680.0,118670.0,2.15111431]
[1754848355582,0.14215697,118680.0,118670.0,1.12835431]
[1754848355781,0.22640677,118680.0,118670.0,1.89427431]
[1754848355981,0.14215697,118680.0,118670.0,1.89427431]
[1754848356888,0.14215697,118680.0,118670.0,2.21667162]
[1754848357224,0.10779697,118680.0,118670.0,2.21667162]
[1754848358887,0.14112697,118680.0,118670.0,1.563877]
[1754848359076,0.14112697,118680.0,118670.0,2.20867162]
[1754848359986,0.14112697,118680.0,118670.0,2.22781342]
[1754848361091,0.22537677,118680.0,118670.0,2.22781342]
[1754848361589,0.22537677,118680.0,118670.0,1.90541611]
[1754848362285,0.22537677,118680.0,118670.0,2.22781342]
[1754848363482,0.22537677,118680.0,118670.0,0.8170988]
[1754848363690,0.22537677,118680.0,118670.0,1.90653611]
[1754848364091,0.22537677,118680.0,118670.0,2.22893342]
[1754848364284,0.22537677,118680.0,118670.0,1.90653611]
[1754848365993,0.22537677,118680.0,118670.0,1.89853611]
[1754848368395,0.14112697,118680.0,118670.0,1.89853611]
[1754848368790,0.22537677,118680.0,118670.0,1.89853611]
[1754848371797,0.22537677,118680.0,118670.0,1.91453611]
[1754848373098,0.22537677,118680.0,118670.0,1.90653611]
[1754848374797,0.22537677,118680.0,118670.0,2.22893342]
[1754848375498,0.29347908,118680.0,118670.0,2.22893342]
[1754848380203,0.29347908,118680.0,118670.0,2.22093342]
[1754848387303,0.29347908,118680.0,118670.0,2.21293342]
[1754848389306,0.29347908,118680.0,118670.0,1.89053611]
[1754848393707,0.29345908,118680.0,118670.0,1.14749601]
[1754848393902,0.29345908,118680.0,118670.0,1.91349601]
[1754848395110,0.29335908,118680.0,118670.0,1.90549601]
[1754848402213,0.29335908,118680.0,118670.0,1.89749601]
[1754848402415,0.29345908,118680.0,118670.0,1.13159601]
[1754848402615,0.29345908,118680.0,118670.0,1.89759601]
[1754848403518,0.29345908,118680.0,118670.0,1.5751987]
[1754848403717,0.29345908,118680.0,118670.0,1.89759601]
[1754848405230,0.29345908,118680.0,118670.0,1.17599601]
[1754848405416,0.29345908,118680.0,118670.0,1.53679601]
[1754848409321,0.29345908,118680.0,118670.0,1.52879601]
[1754848416424,0.29345908,118680.0,118670.0,1.52079601]
[1754848418736,0.29345908,118680.0,118670.0,1.53355421]
[1754848419729,0.29345908,118680.0,118670.0,1.53351421]
[1754848421838,0.29345908,118680.0,118670.0,1.44925731]
[1754848422136,0.29345908,118680.0,118670.0,1.53351421]
[1754848422636,0.29345908,118680.0,118670.0,1.12686]
[1754848422836,0.29345908,118680.0,118670.0,1.44925731]
[1754848423025,0.29345908,118680.0,118670.0,0.68329731]
[1754848423228,0.29345908,118680.0,118670.0,1.44925731]
[1754848423535,0.29335908,118680.0,118670.0,1.44125731]
[1754848424637,0.29335908,118680.0,118670.0,1.52551421]
[1754848424837,0.29345908,118680.0,118670.0,1.52561421]
[1754848426837,0.29345908,118680.0,118670.0,1.53351421]
[1754848430541,0.29345908,118680.0,118670.0,1.52551421]
[1754848432340,0.29345908,118680.0,118670.0,0.75955421]
[1754848432548,0.29345908,118680.0,118670.0,1.52547421]
[1754848432845,0.29345908,118680.0,118670.0,1.53347421]
[1754848433029,0.29345908,118680.0,118670.0,1.2110769]
[1754848433235,0.29345908,118680.0,118670.0,1.53347421]
[1754848435038,0.29345908,118680.0,118670.0,0.68329731]
[1754848435239,0.29345908,118680.0,118670.0,1.44921731]
[1754848435440,0.29345908,118680.0,118670.0,1.53347421]
[1754848437244,0.29345908,118680.0,118670.0,1.2110769]
[1754848437433,0.29345908,118680.0,118670.0,1.53347421]
[1754848437633,0.29335908,118680.0,118670.0,1.52547421]
[1754848437837,0.29335908,118680.0,118670.0,1.2030769]
[1754848438136,0.29335908,118680.0,118670.0,1.52547421]
[1754848438339,0.29361037,118680.0,118670.0,1.52547421]
[1754848439248,0.29361037,118680.0,118670.0,1.53337421]
[1754848439441,0.29361037,118680.0,118670.0,1.53347421]
[1754848439442,0.29371037,118680.0,118670.0,1.53347421]
[1754848439638,0.29371037,118680.0,118670.0,0.68329731]
[1754848439847,0.60029768,118680.0,118670.0,0.3609]
[1754848440049,0.61448768,118680.0,118670.0,0.3609]
[1754848440340,0.61448768,118680.0,118670.0,0.68329731]
[1754848442737,0.61448768,118680.0,118670.0,0.3609]
[1754848442939,0.61448768,118680.0,118670.0,0.68329731]
[1754848443242,0.61448768,118680.0,118670.0,0.3609]
[1754848444439,0.61448768,118680.0,118670.0,0.0001]
[1754848444946,0.52516421,118670.0,118660.0,1.54425098]
[1754848445145,0.54598247,118670.0,118660.0,1.54425098]
[1754848446142,0.22358516,118670.0,118660.0,1.54425098]
[1754848446445,0.22468516,118670.0,118660.0,1.54835098]
[1754848447146,0.22568516,118670.0,118660.0,1.22795367]
[1754848447342,0.54808247,118670.0,118660.0,1.55035098]
[1754848447946,0.22568516,118670.0,118660.0,1.55035098]
[1754848449248,0.22568516,118670.0,118660.0,1.46608768]
[1754848449443,0.54808247,118670.0,118660.0,1.14369037]
[1754848449842,0.54808247,118670.0,118660.0,1.46608768]
[1754848449843,0.60873263,118670.0,118660.0,1.46608768]
[1754848450342,0.54808247,118670.0,118660.0,1.46608768]
[1754848450546,0.60873263,118670.0,118660.0,1.46608768]
[1754848451750,0.60873263,118670.0,118660.0,1.45808768]
[1754848453145,0.28633532,118670.0,118660.0,1.45808768]
[1754848453348,0.60873263,118670.0,118660.0,1.45808768]
[1754848453550,0.28633532,118670.0,118660.0,1.45808768]
[1754848453749,0.60873263,118670.0,118660.0,1.45808768]
[1754848454148,0.54808247,118670.0,118660.0,1.45808768]
[1754848454453,0.22568516,118670.0,118660.0,1.45808768]
[1754848454651,0.54808247,118670.0,118660.0,1.45808768]
[1754848455054,0.54808247,118670.0,118660.0,1.09728768]
[1754848455255,0.54808247,118670.0,118660.0,1.45808768]
[1754848456153,0.54808247,118670.0,118660.0,1.09728768]
[1754848458171,0.54808247,118670.0,118660.0,0.33140768]
[1754848458956,0.54798247,118670.0,118660.0,0.32340768]
[1754848462352,1.31386247,118670.0,118660.0,0.00101037]
[1754848462560,1.31396247,118670.0,118660.0,0.00111037]
[1754848469163,1.67476247,118670.0,118660.0,0.00111037]
[1754848471069,1.35236516,118670.0,118660.0,0.00111037]
[1754848471260,1.67476247,118670.0,118660.0,0.00111037]
[1754848474468,1.35236516,118670.0,118660.0,0.32350768]
[1754848474668,1.67476247,118670.0,118660.0,0.32350768]
[1754848476070,1.67476247,118670.0,118660.0,0.00111037]
[1754848476372,1.67476247,118670.0,118660.0,0.32350768]
[1754848477372,1.67476247,118670.0,118660.0,0.00111037]
[1754848477668,1.67476247,118670.0,118660.0,0.32350768]
[1754848479973,1.67476247,118670.0,118660.0,0.31550768]
[1754848479974,1.67466247,118670.0,118660.0,0.31550768]
[1754848481771,1.31386247,118670.0,118660.0,0.31550768]
[1754848481981,1.67476247,118670.0,118660.0,0.31560768]
[1754848482781,1.67476247,118670.0,118660.0,0.0001]
[1754848484382,1.75050587,118670.0,118660.0,0.0001]
[1754848484981,1.81106609,118670.0,118660.0,0.32249731]
[1754848485186,1.73532269,118670.0,118660.0,0.32249731]
[1754848485776,1.73532269,118670.0,118660.0,0.0001]
[1754848486683,1.37452269,118670.0,118660.0,0.0001]
[1754848486883,1.73532269,118670.0,118660.0,0.0001]
[1754848487083,1.41292538,118670.0,118660.0,0.0001]
[1754848487278,1.73532269,118670.0,118660.0,0.32249731]
[1754848487584,1.73532269,118670.0,118660.0,0.0001]
[1754848487881,1.73532269,118670.0,118660.0,0.32249731]
[1754848492988,1.75050587,118670.0,118660.0,0.32249731]
[1754848493487,1.75050587,118670.0,118660.0,0.0001]
[1754848493690,1.75050587,118670.0,118660.0,0.32249731]
[1754848494091,1.42800856,118670.0,118660.0,0.31449731]
[1754848494393,0.2043941,118660.0,118650.0,0.76746811]
[1754848494587,0.56484955,118660.0,118650.0,0.76746811]
[1754848494793,0.56484955,118660.0,118650.0,0.68319731]
[1754848495484,0.56484955,118660.0,118650.0,0.76746851]
[1754848495684,0.56484955,118660.0,118650.0,0.76756851]
[1754848495685,0.56494955,118660.0,118650.0,0.76756851]
[1754848495886,0.56494955,118660.0,118650.0,0.68329731]
[1754848496394,0.56494955,118660.0,118650.0,0.0051]
[1754848496586,0.56594955,118660.0,118650.0,0.41176851]
[1754848496890,0.56594955,118660.0,118650.0,0.32749731]
[1754848497093,0.56694955,118660.0,118650.0,0.32849731]
[1754848497488,0.56894955,118660.0,118650.0,0.76956851]
[1754848497792,0.56894955,118660.0,118650.0,0.76856851]
[1754848498494,0.56894955,118660.0,118650.0,0.68429731]
[1754848499097,0.56894955,118660.0,118650.0,0.3619]
[1754848499792,0.56894955,118660.0,118650.0,0.68429731]
[1754848499994,0.56894955,118660.0,118650.0,0.3619]
[1754848500188,0.56894955,118660.0,118650.0,0.68429731]
[1754848500394,0.24655224,118660.0,118650.0,0.68429731]
[1754848500595,0.56894955,118660.0,118650.0,0.68429731]
[1754848501192,0.56884955,118660.0,118650.0,0.76056851]
[1754848501496,0.24645224,118660.0,118650.0,0.76056851]
[1754848501688,0.56884955,118660.0,118650.0,0.76056851]
[1754848504095,0.21335224,118660.0,118650.0,0.76056851]
[1754848504392,0.24655224,118660.0,118650.0,0.76066851]
[1754848506388,0.15139224,118660.0,118650.0,1.10178548]
[1754848506590,0.15015224,118660.0,118650.0,1.86794548]
[1754848507594,0.06588814,118660.0,118650.0,1.86794548]
[1754848509097,0.06588814,118660.0,118650.0,1.85994548]
[1754848510092,0.15015224,118660.0,118650.0,1.85994548]
[1754848510691,0.06588814,118660.0,118650.0,1.85994548]
[1754848511190,0.15015224,118660.0,118650.0,1.85994548]
[1754848511600,0.06588814,118660.0,118650.0,1.85994548]
[1754848514601,0.04215814,118660.0,118650.0,1.85994548]
[1754848514801,0.02491826,118660.0,118650.0,2.02849747]
[1754848515302,0.02491826,118660.0,118650.0,2.28529747]
[1754848515693,0.02491826,118660.0,118650.0,2.11674548]
[1754848516294,0.02491826,118660.0,118650.0,2.10874548]
[1754848516499,0.02491826,118660.0,118650.0,2.49244548]
[1754848523006,0.04864826,118660.0,118650.0,2.49244548]
[1754848523306,0.02783,118660.0,118650.0,2.48444548]
[1754848523906,0.04865568,118660.0,118650.0,2.48444548]
[1754848524309,0.02783,118660.0,118650.0,2.48444548]
[1754848527406,0.10074,118660.0,118650.0,2.48444548]
[1754848527604,0.12348,118660.0,118650.0,2.48444548]
[1754848529152,0.02783,118660.0,118650.0,2.48444548]
[1754848530408,0.02783,118660.0,118650.0,2.47644548]
[1754848533815,0.04153,118660.0,118650.0,2.47644548]
[1754848534016,0.05082,118660.0,118650.0,2.47644548]
[1754848534343,0.0716559,118660.0,118650.0,2.47644548]
[1754848535113,0.0579559,118660.0,118650.0,2.47644548]
[1754848537424,0.0579559,118660.0,118650.0,2.46844548]
[1754848539925,0.22703,118660.0,118650.0,2.14672817]
[1754848540123,0.22703,118660.0,118650.0,1.37988817]
[1754848540318,0.54942731,118660.0,118650.0,2.14680817]
[1754848540525,0.22703,118660.0,118650.0,2.14680817]
[1754848541124,0.22703,118660.0,118650.0,2.46920548]
[1754848541624,0.22703,118660.0,118650.0,2.46928548]
[1754848541917,0.22703,118660.0,118650.0,2.46944548]
[1754848542118,0.1427659,118660.0,118650.0,2.46944548]
[1754848544514,0.1427659,118660.0,118650.0,2.46144548]
[1754848544917,0.1427659,118660.0,118650.0,2.20464548]
[1754848548620,0.22703,118660.0,118650.0,2.20464548]
[1754848551626,0.22703,118660.0,118650.0,2.19664548]
[1754848553419,0.1427659,118660.0,118650.0,2.19664548]
[1754848557129,0.22703,118660.0,118650.0,2.19664548]
[1754848558228,0.1427659,118660.0,118650.0,2.19664548]
[1754848558731,0.1427659,118660.0,118650.0,2.18864548]
[1754848565936,0.1427659,118660.0,118650.0,2.15237428]
[1754848566336,0.1427659,118660.0,118650.0,2.23664548]
[1754848573040,0.1426659,118660.0,118650.0,2.22864548]
[1754848573741,0.0248359,118660.0,118650.0,2.22864548]
[1754848575236,0.0482159,118660.0,118650.0,2.22864548]
[1754848575437,0.0483159,118660.0,118650.0,2.22874548]
[1754848580048,0.0483159,118660.0,118650.0,2.22074548]
[1754848582547,0.0483159,118660.0,118650.0,1.57595086]
[1754848582849,0.0483159,118660.0,118650.0,2.22074548]
[1754848585245,0.0624659,118660.0,118650.0,2.22074548]
[1754848585747,0.0724359,118660.0,118650.0,2.22074548]
[1754848587152,0.0724359,118660.0,118650.0,2.21274548]
[1754848587350,0.0724359,118660.0,118650.0,2.23166422]
[1754848588053,0.0724359,118660.0,118650.0,1.51006422]
[1754848588243,0.0724359,118660.0,118650.0,2.23166422]
[1754848588748,0.0724359,118660.0,118650.0,1.5868696]
[1754848588950,0.0724359,118660.0,118650.0,2.23166422]
[1754848589675,0.1060159,118660.0,118650.0,2.23166422]
[1754848594354,0.1060159,118660.0,118650.0,2.22366422]
[1754848596657,0.1795199,118660.0,118650.0,2.22366422]
[1754848596991,0.2264199,118660.0,118650.0,1.46968456]
[1754848597260,0.2264199,118660.0,118650.0,2.23604456]
[1754848599558,0.2264199,118660.0,118650.0,2.23608456]
[1754848599862,0.2264199,118660.0,118650.0,1.46968456]
[1754848600059,0.2264199,118660.0,118650.0,2.23608456]
[1754848600260,0.2264199,118660.0,118650.0,1.46968456]
[1754848600459,0.2264199,118660.0,118650.0,2.23604456]
[1754848600667,0.2264199,118660.0,118650.0,1.46968456]
[1754848600855,0.2264199,118660.0,118650.0,2.23600456]
[1754848601362,0.2264199,118660.0,118650.0,2.22800456]
[1754848601559,0.2264199,118660.0,118650.0,2.22796456]
[1754848601959,0.2264199,118660.0,118650.0,1.46168456]
[1754848602162,0.2264199,118660.0,118650.0,2.22792456]
[1754848602957,0.2264199,118660.0,118650.0,1.46168456]
[1754848603162,0.2264199,118660.0,118650.0,2.22792456]
[1754848603363,0.2264199,118660.0,118650.0,2.22788456]
[1754848603863,0.2264199,118660.0,118650.0,2.22784456]
[1754848605965,0.1425499,118660.0,118650.0,2.22784456]
[1754848606261,0.2281399,118660.0,118650.0,2.22784456]
[1754848608466,0.2281399,118660.0,118650.0,2.21984456]
[1754848611069,0.2281399,118660.0,118650.0,1.49824456]
[1754848611264,0.2281399,118660.0,118650.0,2.21984456]
[1754848612670,0.2281399,118660.0,118650.0,1.45368456]
[1754848612871,0.2281399,118660.0,118650.0,2.21952456]
[1754848614664,0.1812399,118660.0,118650.0,2.21952456]
[1754848615066,0.1949599,118660.0,118650.0,2.21952456]
[1754848615471,0.2281399,118660.0,118650.0,2.21152456]
[1754848617670,0.0483159,118660.0,118650.0,2.21152456]
[1754848619674,0.13258,118660.0,118650.0,2.21152456]
[1754848619869,0.0483159,118660.0,118650.0,2.21152456]
[1754848621670,0.0487559,118660.0,118650.0,2.21152456]
[1754848622578,0.0487559,118660.0,118650.0,2.20352456]
[1754848622774,0.0249359,118660.0,118650.0,2.20352456]
[1754848624775,0.0249359,118660.0,118650.0,2.46632456]
[1754848627878,0.0496359,118660.0,118650.0,2.46632456]
[1754848628684,0.0496359,118660.0,118650.0,1.70048456]
[1754848628883,0.0496359,118660.0,118650.0,2.46632456]
[1754848630982,0.0496359,118660.0,118650.0,2.45832456]
[1754848632280,0.0249359,118660.0,118650.0,2.45832456]
[1754848632585,0.0249359,118660.0,118650.0,2.78072187]
[1754848632789,0.0249359,118660.0,118650.0,2.45832456]
[1754848635488,0.0249359,118660.0,118650.0,2.78072187]
[1754848635786,0.0041,118660.0,118650.0,2.45832456]
[1754848636291,0.0041,118660.0,118650.0,2.78072187]
[1754848637786,0.0041,118660.0,118650.0,2.77272187]
[1754848637991,0.0041,118660.0,118650.0,2.45032456]
[1754848638387,0.0041,118660.0,118650.0,1.72872456]
[1754848638586,0.0041,118660.0,118650.0,2.45032456]
[1754848640391,0.0041,118660.0,118650.0,2.77272187]
[1754848640590,0.0288,118660.0,118650.0,2.45032456]
[1754848644909,0.0288,118660.0,118650.0,2.41405336]
[1754848645093,0.0288,118660.0,118650.0,2.49832456]
[1754848651119,0.0288,118660.0,118650.0,2.82072187]
[1754848651995,0.0287,118660.0,118650.0,2.81272187]
[1754848657703,0.0287,118660.0,118650.0,2.09112187]
[1754848657904,0.0288,118660.0,118650.0,2.81282187]
[1754848659107,0.0288,118660.0,118650.0,2.80482187]
[1754848659703,0.0288,118660.0,118650.0,2.08322187]
[1754848660007,0.0288,118660.0,118650.0,2.80482187]
[1754848662007,0.0288,118660.0,118650.0,2.08322187]
[1754848662205,0.0288,118660.0,118650.0,2.80482187]
[1754848666107,0.0288,118660.0,118650.0,2.80180313]